[Event "Titled Tuesday Blitz March 29 Late 2022"]
[White "Vusatiuk, Vladimir"]
[Black "Van Foreest, Jorden"]
[WhiteFideId "14118610"]
[BlackFideId "1039784"]
[WhiteElo "2157"]
[BlackElo "2609"]
[Result "0-1"]
[Round "01"]
[TimeControl "180+1"]
[Date "2022.03.29"]
[WhiteClock "0:00:02"]
[BlackClock "0:00:38"]

1. d4 {[%clk 0:02:59]}  g6 {[%clk 0:03:00]} 2. c4 {[%clk 0:02:58]}  Bg7 {[%clk 0:03:00]} 3. Nc3 {[%clk 0:02:58]}  d6 {[%clk 0:03:00]} 4. e4 {[%clk 0:02:58]}  Nc6 {[%clk 0:03:01]} 5. Nf3 {[%clk 0:02:57]}  Bg4 {[%clk 0:03:01]} 6. Be3 {[%clk 0:02:53]}  e5 {[%clk 0:03:00]} 7. dxe5 {[%clk 0:02:33]}  Nxe5 {[%clk 0:02:55]} 8. Be2 {[%clk 0:02:24]}  Nxf3+ {[%clk 0:02:52]} 9. Bxf3 {[%clk 0:02:22]}  Bxf3 {[%clk 0:02:51]} 10. Qxf3 {[%clk 0:02:23]}  Nf6 {[%clk 0:02:43]} 11. Bd4 {[%clk 0:02:13]}  O-O {[%clk 0:02:43]} 12. O-O {[%clk 0:02:12]}  Re8 {[%clk 0:02:42]} 13. Rfe1 {[%clk 0:02:02]}  Qe7 {[%clk 0:02:38]} 14. e5 {[%clk 0:01:34]}  dxe5 {[%clk 0:02:39]} 15. Bxe5 {[%clk 0:01:31]}  c6 {[%clk 0:02:38]} 16. Re2 {[%clk 0:01:23]}  Qd8 {[%clk 0:01:40]} 17. Rd1 {[%clk 0:01:16]}  Nd7 {[%clk 0:01:38]} 18. Bxg7 {[%clk 0:01:13]}  Kxg7 {[%clk 0:01:39]} 19. Red2 {[%clk 0:01:09]}  Qe7 {[%clk 0:01:39]} 20. h3 {[%clk 0:00:54]}  Nf6 {[%clk 0:01:38]} 21. b3 {[%clk 0:00:34]}  Qe5 {[%clk 0:01:38]} 22. Re2 {[%clk 0:00:30]}  Qc5 {[%clk 0:01:23]} 23. Ne4 {[%clk 0:00:20]}  Nxe4 {[%clk 0:01:24]} 24. Rxe4 {[%clk 0:00:20]}  Rad8 {[%clk 0:01:11]} 25. Rxe8 {[%clk 0:00:10]}  Rxe8 {[%clk 0:01:10]} 26. Rd7 {[%clk 0:00:08]}  Re1+ {[%clk 0:01:07]} 27. Kh2 {[%clk 0:00:08]}  Re7 {[%clk 0:01:08]} 28. Rxe7 {[%clk 0:00:08]}  Qxe7 {[%clk 0:01:06]} 29. g3 {[%clk 0:00:09]}  Qe5 {[%clk 0:01:04]} 30. Kg2 {[%clk 0:00:06]}  h5 {[%clk 0:01:04]} 31. h4 {[%clk 0:00:07]}  Qd4 {[%clk 0:01:05]} 32. Qe2 {[%clk 0:00:07]}  Kf6 {[%clk 0:01:05]} 33. Qe8 {[%clk 0:00:06]}  Qd6 {[%clk 0:00:49]} 34. Qh8+ {[%clk 0:00:05]}  Kf5 {[%clk 0:00:48]} 35. Qg8 {[%clk 0:00:05]}  Qe6 {[%clk 0:00:48]} 36. Qb8 {[%clk 0:00:04]}  Qe4+ {[%clk 0:00:46]} 37. Kg1 {[%clk 0:00:04]}  Kg4 {[%clk 0:00:45]} 38. Qxb7 {[%clk 0:00:03]}  Kh3 {[%clk 0:00:40]} 39. Qd7+ {[%clk 0:00:03]}  f5 {[%clk 0:00:39]} 40. f3 {[%clk 0:00:02]}  Qe1# {[%clk 0:00:38]} 0-1


[Site "https://www.chess.com"]

[Event "Titled Tuesday Blitz March 29 Late 2022"]
[White "Winkels, Marcel"]
[Black "Taichman, Ori"]
[WhiteFideId "1003887"]
[BlackFideId "2804069"]
[WhiteElo "1900"]
[BlackElo "2227"]
[Result "0-1"]
[Round "01"]
[TimeControl "180+1"]
[Date "2022.03.30"]
[WhiteClock "0:00:02"]
[BlackClock "0:00:42"]

1. e4 {[%clk 0:02:59]}  c6 {[%clk 0:02:59]} 2. d4 {[%clk 0:02:57]}  d5 {[%clk 0:02:56]} 3. exd5 {[%clk 0:02:58]}  cxd5 {[%clk 0:02:55]} 4. c4 {[%clk 0:02:58]}  Nf6 {[%clk 0:02:55]} 5. Nc3 {[%clk 0:02:59]}  e6 {[%clk 0:02:55]} 6. Nf3 {[%clk 0:02:58]}  Bb4 {[%clk 0:02:56]} 7. cxd5 {[%clk 0:02:56]}  Nxd5 {[%clk 0:02:51]} 8. Qc2 {[%clk 0:02:51]}  Nc6 {[%clk 0:02:37]} 9. Bd3 {[%clk 0:02:39]}  Nf6 {[%clk 0:02:27]} 10. Be3 {[%clk 0:02:21]}  O-O {[%clk 0:02:24]} 11. O-O {[%clk 0:02:18]}  Bd7 {[%clk 0:02:19]} 12. a3 {[%clk 0:02:16]}  Ba5 {[%clk 0:02:18]} 13. Bg5 {[%clk 0:01:58]}  h6 {[%clk 0:02:17]} 14. Bh4 {[%clk 0:01:54]}  Rc8 {[%clk 0:02:17]} 15. Rad1 {[%clk 0:01:48]}  Bc7 {[%clk 0:02:11]} 16. d5 {[%clk 0:01:39]}  exd5 {[%clk 0:02:08]} 17. Nxd5 {[%clk 0:01:38]}  g5 {[%clk 0:02:08]} 18. Nxf6+ {[%clk 0:01:34]}  Qxf6 {[%clk 0:02:07]} 19. Bg3 {[%clk 0:01:30]}  Bxg3 {[%clk 0:02:04]} 20. fxg3 {[%clk 0:01:30]}  Nd4 {[%clk 0:02:03]} 21. Bh7+ {[%clk 0:01:16]}  Kg7 {[%clk 0:02:01]} 22. Qd3 {[%clk 0:01:15]}  Nxf3+ {[%clk 0:02:01]} 23. Rxf3 {[%clk 0:01:11]}  Qb6+ {[%clk 0:02:01]} 24. Kh1 {[%clk 0:01:10]}  Bb5 {[%clk 0:02:00]} 25. Qf5 {[%clk 0:00:38]}  Rc5 {[%clk 0:01:58]} 26. Qe4 {[%clk 0:00:26]}  Qd6 {[%clk 0:00:47]} 27. Re1 {[%clk 0:00:19]}  Bc6 {[%clk 0:00:46]} 28. Qb1 {[%clk 0:00:16]}  Bxf3 {[%clk 0:00:45]} 29. gxf3 {[%clk 0:00:16]}  f5 {[%clk 0:00:43]} 30. b4 {[%clk 0:00:11]}  Re5 {[%clk 0:00:43]} 31. Rd1 {[%clk 0:00:09]}  Qe7 {[%clk 0:00:42]} 32. Qb2 {[%clk 0:00:04]}  Kxh7 {[%clk 0:00:41]} 33. f4 {[%clk 0:00:02]}  Re1+ {[%clk 0:00:42]} 34. Rxe1 {[%clk 0:00:02]}  Qxe1+ {[%clk 0:00:42]} 35. Kg2 {[%clk 0:00:02]}  Re8 {[%clk 0:00:42]} 0-1


[Site "https://www.chess.com"]

[Event "Titled Tuesday Blitz March 29 Late 2022"]
[White "Zhukov, Maksim"]
[Black "Najer, Evgeniy"]
[WhiteFideId "34181790"]
[BlackFideId "4118987"]
[WhiteElo "1978"]
[BlackElo "2562"]
[Result "0-1"]
[Round "01"]
[TimeControl "180+1"]
[Date "2022.03.30"]
[WhiteClock "0:00:38"]
[BlackClock "0:01:53"]

1. d4 {[%clk 0:03:00]}  Nf6 {[%clk 0:02:58]} 2. Nf3 {[%clk 0:02:59]}  d5 {[%clk 0:02:57]} 3. c4 {[%clk 0:02:58]}  e6 {[%clk 0:02:55]} 4. g3 {[%clk 0:02:58]}  Bb4+ {[%clk 0:02:48]} 5. Bd2 {[%clk 0:02:56]}  Be7 {[%clk 0:02:47]} 6. Qc2 {[%clk 0:02:54]}  O-O {[%clk 0:02:46]} 7. Bg2 {[%clk 0:02:54]}  c5 {[%clk 0:02:45]} 8. O-O {[%clk 0:02:51]}  cxd4 {[%clk 0:02:43]} 9. Nxd4 {[%clk 0:02:52]}  e5 {[%clk 0:02:38]} 10. Nb3 {[%clk 0:02:46]}  d4 {[%clk 0:02:37]} 11. Rd1 {[%clk 0:02:29]}  Nc6 {[%clk 0:02:31]} 12. Be1 {[%clk 0:02:28]}  Bg4 {[%clk 0:02:25]} 13. h3 {[%clk 0:02:19]}  Bh5 {[%clk 0:02:25]} 14. g4 {[%clk 0:02:19]}  Bg6 {[%clk 0:02:24]} 15. Qc1 {[%clk 0:02:17]}  h5 {[%clk 0:02:24]} 16. g5 {[%clk 0:02:14]}  Ne4 {[%clk 0:02:24]} 17. h4 {[%clk 0:02:13]}  f6 {[%clk 0:02:22]} 18. N1d2 {[%clk 0:01:55]}  Nxd2 {[%clk 0:02:10]} 19. Bxd2 {[%clk 0:01:56]}  fxg5 {[%clk 0:02:10]} 20. hxg5 {[%clk 0:01:49]}  Qd7 {[%clk 0:02:09]} 21. e3 {[%clk 0:01:31]}  Qg4 {[%clk 0:02:03]} 22. f3 {[%clk 0:00:54]}  Rxf3 {[%clk 0:01:59]} 23. Rf1 {[%clk 0:00:45]}  Rxf1+ {[%clk 0:01:56]} 24. Qxf1 {[%clk 0:00:45]}  Rf8 {[%clk 0:01:55]} 25. Qe1 {[%clk 0:00:38]}  Be4 {[%clk 0:01:53]} 0-1


[Site "https://www.chess.com"]

[Event "Titled Tuesday Blitz March 29 Late 2022"]
[White "Aldokhin, Ivan"]
[Black "Zhukov, Maksim"]
[WhiteFideId "24115720"]
[BlackFideId "34181790"]
[WhiteElo "2231"]
[BlackElo "1978"]
[Result "1-0"]
[Round "02"]
[TimeControl "180+1"]
[Date "2022.03.30"]
[WhiteClock "0:01:06"]
[BlackClock "0:01:27"]

1. e4 {[%clk 0:03:00]}  c6 {[%clk 0:03:00]} 2. Nc3 {[%clk 0:03:00]}  d5 {[%clk 0:03:00]} 3. Nf3 {[%clk 0:03:00]}  dxe4 {[%clk 0:03:01]} 4. Nxe4 {[%clk 0:03:00]}  Nd7 {[%clk 0:03:01]} 5. Qe2 {[%clk 0:03:00]}  e6 {[%clk 0:02:56]} 6. d4 {[%clk 0:03:00]}  Ngf6 {[%clk 0:02:56]} 7. Nxf6+ {[%clk 0:03:00]}  Nxf6 {[%clk 0:02:57]} 8. g3 {[%clk 0:03:01]}  c5 {[%clk 0:02:52]} 9. dxc5 {[%clk 0:02:55]}  Qa5+ {[%clk 0:02:50]} 10. c3 {[%clk 0:02:53]}  Qxc5 {[%clk 0:02:51]} 11. Bg2 {[%clk 0:02:53]}  Be7 {[%clk 0:02:50]} 12. O-O {[%clk 0:02:51]}  O-O {[%clk 0:02:50]} 13. Be3 {[%clk 0:02:51]}  Qc7 {[%clk 0:02:50]} 14. Bf4 {[%clk 0:02:45]}  Qb6 {[%clk 0:02:49]} 15. Ne5 {[%clk 0:02:42]}  Nd5 {[%clk 0:02:44]} 16. Bc1 {[%clk 0:02:16]}  Bf6 {[%clk 0:02:33]} 17. c4 {[%clk 0:02:11]}  Ne7 {[%clk 0:02:32]} 18. Be3 {[%clk 0:01:57]}  Qa5 {[%clk 0:02:23]} 19. Ng4 {[%clk 0:01:51]}  e5 {[%clk 0:02:02]} 20. Nxf6+ {[%clk 0:01:45]}  gxf6 {[%clk 0:02:03]} 21. a3 {[%clk 0:01:25]}  Qc7 {[%clk 0:01:55]} 22. b4 {[%clk 0:01:22]}  Be6 {[%clk 0:01:54]} 23. Rac1 {[%clk 0:01:21]}  Rfd8 {[%clk 0:01:53]} 24. Qf3 {[%clk 0:01:14]}  Rd7 {[%clk 0:01:46]} 25. Qxf6 {[%clk 0:01:12]}  Bxc4 {[%clk 0:01:38]} 26. Bh6 {[%clk 0:01:06]}  Nf5 {[%clk 0:01:27]} 27. Qxf5 {[%clk 0:01:06]} 1-0


[Site "https://www.chess.com"]

[Event "Titled Tuesday Blitz March 29 Late 2022"]
[White "Al-Tarboush, Ward"]
[Black "Demchenko, Anton"]
[WhiteFideId "7601450"]
[BlackFideId "4160258"]
[WhiteElo "2276"]
[BlackElo "2539"]
[Result "1-0"]
[Round "02"]
[TimeControl "180+1"]
[Date "2022.03.29"]
[WhiteClock "0:00:04"]
[BlackClock "0:00:03"]

1. e4 {[%clk 0:00:58]}  e5 {[%clk 0:02:57]} 2. Nf3 {[%clk 0:00:58]}  Nc6 {[%clk 0:02:57]} 3. Bb5 {[%clk 0:00:58]}  a6 {[%clk 0:02:57]} 4. Ba4 {[%clk 0:00:58]}  Nge7 {[%clk 0:02:57]} 5. O-O {[%clk 0:00:58]}  Ng6 {[%clk 0:02:58]} 6. c3 {[%clk 0:00:54]}  d6 {[%clk 0:02:58]} 7. d4 {[%clk 0:00:54]}  Bd7 {[%clk 0:02:58]} 8. Nbd2 {[%clk 0:00:52]}  Be7 {[%clk 0:02:58]} 9. Re1 {[%clk 0:00:52]}  O-O {[%clk 0:02:59]} 10. Nf1 {[%clk 0:00:52]}  b5 {[%clk 0:02:58]} 11. Bc2 {[%clk 0:00:51]}  exd4 {[%clk 0:02:58]} 12. cxd4 {[%clk 0:00:52]}  Nb4 {[%clk 0:02:58]} 13. Bb1 {[%clk 0:00:48]}  c5 {[%clk 0:02:58]} 14. d5 {[%clk 0:00:48]}  a5 {[%clk 0:02:57]} 15. a3 {[%clk 0:00:45]}  Na6 {[%clk 0:02:58]} 16. Ng3 {[%clk 0:00:45]}  Re8 {[%clk 0:02:57]} 17. Be3 {[%clk 0:00:38]}  a4 {[%clk 0:02:54]} 18. Bc2 {[%clk 0:00:38]}  Rb8 {[%clk 0:02:10]} 19. Rc1 {[%clk 0:00:36]}  Bf6 {[%clk 0:02:07]} 20. Rb1 {[%clk 0:00:33]}  Bg4 {[%clk 0:02:03]} 21. h3 {[%clk 0:00:32]}  Bxf3 {[%clk 0:02:04]} 22. Qxf3 {[%clk 0:00:33]}  Ne5 {[%clk 0:02:04]} 23. Qe2 {[%clk 0:00:33]}  Nc4 {[%clk 0:02:04]} 24. Bc1 {[%clk 0:00:33]}  Nc7 {[%clk 0:01:45]} 25. Nf5 {[%clk 0:00:32]}  Nxd5 {[%clk 0:01:26]} 26. Qg4 {[%clk 0:00:24]}  Kh8 {[%clk 0:01:17]} 27. Bh6 {[%clk 0:00:22]}  gxh6 {[%clk 0:01:11]} 28. exd5 {[%clk 0:00:21]}  Rg8 {[%clk 0:00:38]} 29. Qh5 {[%clk 0:00:20]}  Qf8 {[%clk 0:00:37]} 30. Nxh6 {[%clk 0:00:19]}  Rg7 {[%clk 0:00:36]} 31. Nf5 {[%clk 0:00:18]}  Rg6 {[%clk 0:00:37]} 32. Ng3 {[%clk 0:00:16]}  Nxb2 {[%clk 0:00:35]} 33. Bxg6 {[%clk 0:00:15]}  fxg6 {[%clk 0:00:36]} 34. Qf3 {[%clk 0:00:14]}  Nc4 {[%clk 0:00:30]} 35. Ne4 {[%clk 0:00:14]}  Bd4 {[%clk 0:00:31]} 36. Qg3 {[%clk 0:00:12]}  Be5 {[%clk 0:00:24]} 37. Qd3 {[%clk 0:00:10]}  Qd8 {[%clk 0:00:11]} 38. Re2 {[%clk 0:00:07]}  Bd4 {[%clk 0:00:07]} 39. Rbe1 {[%clk 0:00:06]}  Ne5 {[%clk 0:00:08]} 40. Qg3 {[%clk 0:00:06]}  c4 {[%clk 0:00:06]} 41. Ng5 {[%clk 0:00:06]}  Qg8 {[%clk 0:00:04]} 42. Ne6 {[%clk 0:00:05]}  Bb6 {[%clk 0:00:04]} 43. Qh4 {[%clk 0:00:04]}  Qf7 {[%clk 0:00:03]} 44. Re4 {[%clk 0:00:04]}  Nd3 {[%clk 0:00:03]} 45. R1e2 {[%clk 0:00:03]}  Rg8 {[%clk 0:00:02]} 46. Ng5 {[%clk 0:00:03]}  Qg7 {[%clk 0:00:03]} 47. Re7 {[%clk 0:00:04]}  Bxf2+ {[%clk 0:00:01]} 48. Rxf2 {[%clk 0:00:03]}  Qxe7 {[%clk 0:00:02]} 49. Rf7 {[%clk 0:00:03]}  Qe3+ {[%clk 0:00:02]} 50. Kh1 {[%clk 0:00:04]}  Rg7 {[%clk 0:00:02]} 51. Rf8+ {[%clk 0:00:04]}  Rg8 {[%clk 0:00:03]} 52. Qxh7# {[%clk 0:00:04]} 1-0


[Site "https://www.chess.com"]

[Event "Titled Tuesday Blitz March 29 Late 2022"]
[White "Arabidze, Meri"]
[Black "Holt, Conrad"]
[WhiteFideId "13604040"]
[BlackFideId "2034387"]
[WhiteElo "2335"]
[BlackElo "2586"]
[Result "0-1"]
[Round "02"]
[TimeControl "180+1"]
[Date "2022.03.29"]
[WhiteClock "0:00:03"]
[BlackClock "0:00:07"]

1. Nf3 {[%clk 0:03:00]}  d5 {[%clk 0:03:00]} 2. g3 {[%clk 0:03:01]}  Bg4 {[%clk 0:02:59]} 3. Bg2 {[%clk 0:03:00]}  Nd7 {[%clk 0:02:59]} 4. O-O {[%clk 0:02:59]}  e6 {[%clk 0:02:59]} 5. c4 {[%clk 0:02:58]}  dxc4 {[%clk 0:02:58]} 6. Na3 {[%clk 0:02:57]}  Bxa3 {[%clk 0:02:57]} 7. bxa3 {[%clk 0:02:58]}  Ngf6 {[%clk 0:02:52]} 8. Bb2 {[%clk 0:02:58]}  O-O {[%clk 0:02:51]} 9. Qc2 {[%clk 0:02:57]}  Nb6 {[%clk 0:02:45]} 10. Rfe1 {[%clk 0:02:47]}  Bf5 {[%clk 0:02:36]} 11. e4 {[%clk 0:02:46]}  Nxe4 {[%clk 0:02:15]} 12. Rxe4 {[%clk 0:02:46]}  Bxe4 {[%clk 0:02:15]} 13. Qxe4 {[%clk 0:02:45]}  Na4 {[%clk 0:01:47]} 14. Bd4 {[%clk 0:02:34]}  c5 {[%clk 0:01:43]} 15. Be3 {[%clk 0:02:30]}  Qd5 {[%clk 0:01:30]} 16. Qc2 {[%clk 0:02:23]}  Nb6 {[%clk 0:01:16]} 17. Ng5 {[%clk 0:02:22]}  Qd3 {[%clk 0:01:16]} 18. Qd1 {[%clk 0:01:51]}  h6 {[%clk 0:01:09]} 19. Ne4 {[%clk 0:01:48]}  Rac8 {[%clk 0:00:46]} 20. Qh5 {[%clk 0:01:27]}  Nd5 {[%clk 0:00:33]} 21. Bxc5 {[%clk 0:01:04]}  Rxc5 {[%clk 0:00:27]} 22. Nxc5 {[%clk 0:01:02]}  Qd4 {[%clk 0:00:27]} 23. Rb1 {[%clk 0:00:46]}  Qxc5 {[%clk 0:00:25]} 24. Rxb7 {[%clk 0:00:46]}  Qxa3 {[%clk 0:00:21]} 25. Bxd5 {[%clk 0:00:45]}  exd5 {[%clk 0:00:19]} 26. Qxd5 {[%clk 0:00:45]}  Qxa2 {[%clk 0:00:19]} 27. Rc7 {[%clk 0:00:41]}  a5 {[%clk 0:00:11]} 28. Ra7 {[%clk 0:00:24]}  a4 {[%clk 0:00:10]} 29. Kg2 {[%clk 0:00:13]}  Qb3 {[%clk 0:00:09]} 30. Qa5 {[%clk 0:00:11]}  Qd3 {[%clk 0:00:08]} 31. Qxa4 {[%clk 0:00:11]}  Qe4+ {[%clk 0:00:07]} 32. Kh3 {[%clk 0:00:08]}  Qf5+ {[%clk 0:00:06]} 33. Kg2 {[%clk 0:00:09]}  Qe4+ {[%clk 0:00:07]} 34. Kh3 {[%clk 0:00:08]}  Rd8 {[%clk 0:00:07]} 35. Rc7 {[%clk 0:00:05]}  Rd5 {[%clk 0:00:07]} 36. Qa8+ {[%clk 0:00:03]}  Kh7 {[%clk 0:00:07]} 0-1


[Site "https://www.chess.com"]

[Event "Titled Tuesday Blitz March 29 Late 2022"]
[White "Ashiev, Eduard"]
[Black "Sanal, Vahap"]
[WhiteFideId "4130090"]
[BlackFideId "6300545"]
[WhiteElo "2004"]
[BlackElo "2603"]
[Result "0-1"]
[Round "02"]
[TimeControl "180+1"]
[Date "2022.03.30"]
[WhiteClock "0:00:17"]
[BlackClock "0:00:37"]

1. d4 {[%clk 0:03:00]}  Nf6 {[%clk 0:02:59]} 2. c4 {[%clk 0:02:58]}  g6 {[%clk 0:03:00]} 3. Nc3 {[%clk 0:02:57]}  Bg7 {[%clk 0:03:01]} 4. e4 {[%clk 0:02:57]}  d6 {[%clk 0:03:01]} 5. Nf3 {[%clk 0:02:55]}  O-O {[%clk 0:03:01]} 6. h3 {[%clk 0:02:56]}  e5 {[%clk 0:02:59]} 7. d5 {[%clk 0:02:56]}  Na6 {[%clk 0:02:59]} 8. Bg5 {[%clk 0:02:55]}  Nc5 {[%clk 0:02:59]} 9. Nd2 {[%clk 0:02:54]}  a5 {[%clk 0:03:00]} 10. Be2 {[%clk 0:02:42]}  c6 {[%clk 0:02:59]} 11. O-O {[%clk 0:02:36]}  Kh8 {[%clk 0:02:44]} 12. Nb3 {[%clk 0:02:28]}  h6 {[%clk 0:02:40]} 13. Nxc5 {[%clk 0:02:27]}  hxg5 {[%clk 0:02:38]} 14. Nb3 {[%clk 0:02:21]}  c5 {[%clk 0:02:38]} 15. Nd2 {[%clk 0:02:12]}  Ng8 {[%clk 0:02:33]} 16. Nb5 {[%clk 0:02:08]}  f5 {[%clk 0:02:33]} 17. a3 {[%clk 0:02:00]}  Nh6 {[%clk 0:02:33]} 18. b4 {[%clk 0:01:57]}  b6 {[%clk 0:02:31]} 19. bxc5 {[%clk 0:01:55]}  bxc5 {[%clk 0:02:32]} 20. Rb1 {[%clk 0:01:54]}  g4 {[%clk 0:02:32]} 21. hxg4 {[%clk 0:01:51]}  fxg4 {[%clk 0:02:25]} 22. g3 {[%clk 0:01:50]}  Bf6 {[%clk 0:02:05]} 23. Kg2 {[%clk 0:01:46]}  Bg5 {[%clk 0:02:06]} 24. Rh1 {[%clk 0:01:45]}  Kg7 {[%clk 0:02:06]} 25. Rb2 {[%clk 0:01:19]}  Qf6 {[%clk 0:01:59]} 26. Qf1 {[%clk 0:01:15]}  Rb8 {[%clk 0:01:52]} 27. Bd3 {[%clk 0:01:11]}  Rb7 {[%clk 0:01:46]} 28. Qe2 {[%clk 0:01:07]}  Rbf7 {[%clk 0:01:42]} 29. Nf1 {[%clk 0:01:06]}  Bd7 {[%clk 0:01:24]} 30. a4 {[%clk 0:00:56]}  Bc8 {[%clk 0:01:23]} 31. Kg1 {[%clk 0:00:55]}  Qf3 {[%clk 0:01:17]} 32. Qxf3 {[%clk 0:00:53]}  Rxf3 {[%clk 0:01:18]} 33. Be2 {[%clk 0:00:51]}  Rxf2 {[%clk 0:01:17]} 34. Nxd6 {[%clk 0:00:49]}  Bd7 {[%clk 0:01:16]} 35. Nf5+ {[%clk 0:00:47]}  Bxf5 {[%clk 0:01:05]} 36. Kxf2 {[%clk 0:00:42]}  Bxe4+ {[%clk 0:01:05]} 37. Kg1 {[%clk 0:00:42]}  Bxh1 {[%clk 0:01:05]} 38. Kxh1 {[%clk 0:00:43]}  e4 {[%clk 0:00:52]} 39. Kg2 {[%clk 0:00:40]}  e3 {[%clk 0:00:49]} 40. Bd3 {[%clk 0:00:40]}  Nf7 {[%clk 0:00:48]} 41. Rb7 {[%clk 0:00:38]}  Kh6 {[%clk 0:00:45]} 42. Be2 {[%clk 0:00:36]}  Ne5 {[%clk 0:00:44]} 43. Nxe3 {[%clk 0:00:28]}  Bxe3 {[%clk 0:00:44]} 44. Kh1 {[%clk 0:00:27]}  Rf2 {[%clk 0:00:43]} 45. Re7 {[%clk 0:00:27]}  Bd4 {[%clk 0:00:35]} 46. d6 {[%clk 0:00:19]}  Rxe2 {[%clk 0:00:35]} 47. d7 {[%clk 0:00:19]}  Re1+ {[%clk 0:00:36]} 48. Kg2 {[%clk 0:00:18]}  Rg1+ {[%clk 0:00:36]} 49. Kh2 {[%clk 0:00:17]}  Nf3# {[%clk 0:00:37]} 0-1


[Site "https://www.chess.com"]

[Event "Titled Tuesday Blitz March 29 Late 2022"]
[White "Bayo Milagro, Alvaro"]
[Black "Van den Dikkenberg, Erik"]
[WhiteFideId "22275240"]
[BlackFideId "1005880"]
[WhiteElo "2270"]
[BlackElo "2118"]
[Result "1-0"]
[Round "02"]
[TimeControl "180+1"]
[Date "2022.03.30"]
[WhiteClock "0:02:23"]
[BlackClock "0:01:43"]

1. d4 {[%clk 0:03:00]}  Nf6 {[%clk 0:02:59]} 2. Nf3 {[%clk 0:03:00]}  g6 {[%clk 0:02:59]} 3. Bg5 {[%clk 0:02:55]}  Bg7 {[%clk 0:02:58]} 4. Nbd2 {[%clk 0:02:55]}  d6 {[%clk 0:02:59]} 5. c3 {[%clk 0:02:55]}  O-O {[%clk 0:02:59]} 6. e4 {[%clk 0:02:55]}  c6 {[%clk 0:02:59]} 7. a4 {[%clk 0:02:54]}  a5 {[%clk 0:02:58]} 8. Bc4 {[%clk 0:02:54]}  Na6 {[%clk 0:02:57]} 9. O-O {[%clk 0:02:54]}  Qc7 {[%clk 0:02:53]} 10. Qe2 {[%clk 0:02:54]}  h6 {[%clk 0:02:47]} 11. Bh4 {[%clk 0:02:53]}  Bg4 {[%clk 0:02:44]} 12. h3 {[%clk 0:02:51]}  Bxf3 {[%clk 0:02:43]} 13. Qxf3 {[%clk 0:02:52]}  g5 {[%clk 0:02:27]} 14. Bg3 {[%clk 0:02:51]}  Qb6 {[%clk 0:02:27]} 15. Rab1 {[%clk 0:02:37]}  Nd7 {[%clk 0:02:07]} 16. h4 {[%clk 0:02:30]}  e5 {[%clk 0:02:07]} 17. dxe5 {[%clk 0:02:27]}  Nxe5 {[%clk 0:02:06]} 18. Bxe5 {[%clk 0:02:27]}  Bxe5 {[%clk 0:02:03]} 19. hxg5 {[%clk 0:02:28]}  hxg5 {[%clk 0:02:03]} 20. Qf5 {[%clk 0:02:26]}  Qd8 {[%clk 0:02:02]} 21. Nf3 {[%clk 0:02:26]}  Bf6 {[%clk 0:01:50]} 22. Qg6+ {[%clk 0:02:24]}  Kh8 {[%clk 0:01:49]} 23. Bxf7 {[%clk 0:02:24]}  Qe7 {[%clk 0:01:43]} 24. Qh6# {[%clk 0:02:23]} 1-0


[Site "https://www.chess.com"]

[Event "Titled Tuesday Blitz March 29 Late 2022"]
[White "Belous, Vladimir"]
[Black "De La Colina, Nicolas"]
[WhiteFideId "4174003"]
[BlackFideId "30946921"]
[WhiteElo "2534"]
[BlackElo "2046"]
[Result "1-0"]
[Round "02"]
[TimeControl "180+1"]
[Date "2022.03.29"]
[WhiteClock "0:01:06"]
[BlackClock "0:00:04"]

1. c4 {[%clk 0:03:00]}  g6 {[%clk 0:03:00]} 2. Nf3 {[%clk 0:02:59]}  Bg7 {[%clk 0:02:59]} 3. d4 {[%clk 0:03:00]}  d6 {[%clk 0:02:59]} 4. h3 {[%clk 0:02:59]}  Nf6 {[%clk 0:03:00]} 5. Nc3 {[%clk 0:02:59]}  O-O {[%clk 0:02:59]} 6. e4 {[%clk 0:02:59]}  e5 {[%clk 0:03:00]} 7. d5 {[%clk 0:03:00]}  Nh5 {[%clk 0:03:00]} 8. g3 {[%clk 0:02:58]}  f5 {[%clk 0:02:52]} 9. exf5 {[%clk 0:02:58]}  gxf5 {[%clk 0:02:53]} 10. Ng5 {[%clk 0:02:56]}  Nf6 {[%clk 0:02:51]} 11. Qc2 {[%clk 0:02:56]}  a5 {[%clk 0:02:32]} 12. a3 {[%clk 0:02:45]}  Na6 {[%clk 0:02:31]} 13. Bg2 {[%clk 0:02:41]}  Nc5 {[%clk 0:02:28]} 14. Be3 {[%clk 0:02:41]}  b6 {[%clk 0:02:26]} 15. Bxc5 {[%clk 0:02:40]}  bxc5 {[%clk 0:02:27]} 16. Ne6 {[%clk 0:02:40]}  Bxe6 {[%clk 0:02:20]} 17. dxe6 {[%clk 0:02:41]}  Rb8 {[%clk 0:02:20]} 18. Qxf5 {[%clk 0:02:24]}  Rxb2 {[%clk 0:02:15]} 19. O-O {[%clk 0:02:23]}  Kh8 {[%clk 0:01:46]} 20. Rab1 {[%clk 0:02:18]}  Rxb1 {[%clk 0:01:13]} 21. Rxb1 {[%clk 0:02:19]}  Ng8 {[%clk 0:01:11]} 22. Qc2 {[%clk 0:02:05]}  Qf6 {[%clk 0:01:08]} 23. Bd5 {[%clk 0:02:03]}  Ne7 {[%clk 0:01:07]} 24. Rb7 {[%clk 0:01:53]}  Nf5 {[%clk 0:00:47]} 25. Rxc7 {[%clk 0:01:49]}  Nd4 {[%clk 0:00:40]} 26. Qd2 {[%clk 0:01:41]}  h6 {[%clk 0:00:38]} 27. Rf7 {[%clk 0:01:38]}  Qg6 {[%clk 0:00:31]} 28. e7 {[%clk 0:01:18]}  Qxf7 {[%clk 0:00:04]} 29. Bxf7 {[%clk 0:01:08]}  Nf3+ {[%clk 0:00:04]} 30. Kf1 {[%clk 0:01:03]}  Nxd2+ {[%clk 0:00:05]} 31. Ke2 {[%clk 0:01:04]}  Rb8 {[%clk 0:00:01]} 32. Kxd2 {[%clk 0:01:02]}  Bf6 {[%clk 0:00:01]} 33. e8=Q+ {[%clk 0:01:03]}  Rxe8 {[%clk 0:00:02]} 34. Bxe8 {[%clk 0:01:04]}  Bd8 {[%clk 0:00:02]} 35. Nd5 {[%clk 0:01:04]}  Kg7 {[%clk 0:00:02]} 36. Bh5 {[%clk 0:01:04]}  Kf8 {[%clk 0:00:03]} 37. Kd3 {[%clk 0:01:05]}  Kg7 {[%clk 0:00:04]} 38. Ke4 {[%clk 0:01:06]} 1-0


[Site "https://www.chess.com"]